fUSD/lending_fUSD_20260521
["ID","MTS","AMOUNT","RATE_DAILY","PERIOD"]
[422767416,1779372644000,-175.96521262,0.0002,2]
[422767430,1779372644000,-495.57763167,0.00021,2]
[422767420,1779372644000,-4957.0,0.0002,2]
[422767431,1779372644000,-429.0,0.00021,2]
[422767421,1779372644000,-429.0,0.0002,2]
[422767419,1779372644000,-557.0,0.0002,2]
[422767422,1779372644000,-2766.3,0.00020381,2]
[422767424,1779372644000,-200.0,0.000207,2]
[422767423,1779372644000,-150.0,0.0002058,2]
[422767426,1779372644000,-229.0,0.00021,2]
[422767428,1779372644000,-557.0,0.00021,2]
[422767425,1779372644000,-210.0,0.00021,2]
[422767429,1779372644000,-247.78881583,0.00021,2]
[422767427,1779372644000,-850.0,0.00021,2]
[422767433,1779372644000,-3634.0,0.00021082,2]
[422767434,1779372644000,-722.752,0.00021082,2]
[422767473,1779372644000,-1024.0,0.00021634,2]
[422767540,1779372644000,-500.0,0.00023497,2]
[422767479,1779372644000,-2697.89406286,0.00021928,2]
[422767517,1779372644000,-150.0,0.0002339,2]
[422767514,1779372644000,-504.73,0.00023296,2]
[422767519,1779372644000,-500.0,0.00023497,2]
[422767515,1779372644000,-170.80277,0.0002336,14]
[422767516,1779372644000,-151.63068737,0.0002339,2]
[422767518,1779372644000,-500.0,0.00023497,2]
[422767523,1779372644000,-500.0,0.00023497,2]
[422767525,1779372644000,-500.0,0.00023497,2]
[422767527,1779372644000,-500.0,0.00023497,2]
[422767526,1779372644000,-500.0,0.00023497,2]
[422767528,1779372644000,-500.0,0.00023497,2]
[422767530,1779372644000,-500.0,0.00023497,2]
[422767482,1779372644000,-229.0,0.00022,2]
[422767520,1779372644000,-500.0,0.00023497,2]
[422767531,1779372644000,-500.0,0.00023497,2]
[422767529,1779372644000,-500.0,0.00023497,2]
[422767524,1779372644000,-500.0,0.00023497,2]
[422767533,1779372644000,-500.0,0.00023497,2]
[422767536,1779372644000,-500.0,0.00023497,2]
[422767535,1779372644000,-500.0,0.00023497,2]
[422767538,1779372644000,-500.0,0.00023497,2]
[422767537,1779372644000,-500.0,0.00023497,2]
[422767539,1779372644000,-500.0,0.00023497,2]
[422767541,1779372644000,-500.0,0.00023497,2]
[422767544,1779372644000,-500.0,0.00023497,2]
[422767545,1779372644000,-500.0,0.00023497,2]
[422767542,1779372644000,-500.0,0.00023497,2]
[422767543,1779372644000,-500.0,0.00023497,2]
[422767532,1779372644000,-500.0,0.00023497,2]
[422767513,1779372644000,-279.484145,0.00023131,14]
[422767534,1779372644000,-500.0,0.00023497,2]
[422767510,1779372644000,-557.0,0.00023,2]
[422767512,1779372644000,-177.529636,0.00023028,14]
[422767485,1779372644000,-429.0,0.00022,2]
[422767494,1779372644000,-200.0,0.00022045,2]
[422767496,1779372644000,-172.13565153,0.00022257,3]
[422767495,1779372644000,-200.0,0.00022074,2]
[422767490,1779372644000,-3545.0,0.00022028,2]
[422767486,1779372644000,-201.68822076,0.00022,3]
[422767492,1779372644000,-927.0,0.00022028,2]
[422767487,1779372644000,-150.0,0.00022028,2]
[422767484,1779372644000,-557.0,0.00022,2]
[422767489,1779372644000,-185.0,0.00022028,2]
[422767491,1779372644000,-625.0,0.00022028,2]
[422767493,1779372644000,-1271.0,0.00022028,2]
[422767500,1779372644000,-929.39,0.000226,14]
[422767488,1779372644000,-166.177,0.00022028,2]
[422767499,1779372644000,-595.61,0.00022466,2]
[422767501,1779372644000,-159.82,0.00022612,2]
[422767521,1779372644000,-367.00847201,0.00023497,2]
[422767511,1779372644000,-429.0,0.00023,2]
[422767502,1779372644000,-200.0,0.000227,2]
[422767507,1779372644000,-1025.0,0.00023,2]
[422767506,1779372644000,-210.0,0.00023,2]
[422767508,1779372644000,-229.0,0.00023,2]
[422767522,1779372644000,-500.0,0.00023497,2]
[422767505,1779372644000,-207.934525,0.00022901,14]
[422767503,1779372644000,-150.0,0.000228,2]
[422767509,1779372644000,-850.0,0.00023,2]
[422767498,1779372644000,-2055.35,0.00022466,2]
[422767497,1779372644000,-2766.3,0.00022353,2]
[422767504,1779372644000,-200.0,0.00022841,2]
[422767587,1779372645000,-3102.50462481,0.00023497,2]
[422767579,1779372645000,-500.0,0.00023497,2]
[422767590,1779372645000,-3102.50462481,0.00023497,2]
[422767589,1779372645000,-3102.50462481,0.00023497,2]
[422767588,1779372645000,-3102.50462481,0.00023497,2]
[422767584,1779372645000,-500.0,0.00023497,2]
[422767581,1779372645000,-500.0,0.00023497,2]
[422767586,1779372645000,-3102.50462481,0.00023497,2]
[422767578,1779372645000,-500.0,0.00023497,2]
[422767580,1779372645000,-500.0,0.00023497,2]
[422767582,1779372645000,-500.0,0.00023497,2]
[422767583,1779372645000,-500.0,0.00023497,2]
[422767585,1779372645000,-500.0,0.00023497,2]
[422767592,1779372645000,-3102.50462481,0.00023497,2]
[422767606,1779372645000,-3102.50462481,0.00023497,2]
[422767593,1779372645000,-3102.50462481,0.00023497,2]
[422767591,1779372645000,-3102.50462481,0.00023497,2]
[422767594,1779372645000,-3102.50462481,0.00023497,2]
[422767603,1779372645000,-3102.50462481,0.00023497,2]
[422767598,1779372645000,-3102.50462481,0.00023497,2]
[422767596,1779372645000,-3102.50462481,0.00023497,2]
[422767602,1779372645000,-3102.50462481,0.00023497,2]
[422767595,1779372645000,-3102.50462481,0.00023497,2]
[422767600,1779372645000,-3102.50462481,0.00023497,2]
[422767599,1779372645000,-3102.50462481,0.00023497,2]
[422767597,1779372645000,-3102.50462481,0.00023497,2]
[422767604,1779372645000,-3102.50462481,0.00023497,2]
[422767605,1779372645000,-3102.50462481,0.00023497,2]
[422767601,1779372645000,-3102.50462481,0.00023497,2]
[422767577,1779372645000,-500.0,0.00023497,2]
[422767610,1779372645000,-3102.50462481,0.00023497,2]
[422767571,1779372645000,-500.0,0.00023497,2]
[422767548,1779372645000,-500.0,0.00023497,2]
[422767549,1779372645000,-500.0,0.00023497,2]
[422767550,1779372645000,-500.0,0.00023497,2]
[422767547,1779372645000,-500.0,0.00023497,2]
[422767546,1779372645000,-500.0,0.00023497,2]
[422767552,1779372645000,-500.0,0.00023497,2]
[422767551,1779372645000,-500.0,0.00023497,2]
[422767558,1779372645000,-500.0,0.00023497,2]
[422767555,1779372645000,-500.0,0.00023497,2]
[422767556,1779372645000,-500.0,0.00023497,2]
[422767560,1779372645000,-500.0,0.00023497,2]
[422767557,1779372645000,-500.0,0.00023497,2]
[422767559,1779372645000,-500.0,0.00023497,2]
[422767554,1779372645000,-500.0,0.00023497,2]
[422767553,1779372645000,-500.0,0.00023497,2]
[422767563,1779372645000,-500.0,0.00023497,2]
[422767561,1779372645000,-500.0,0.00023497,2]
[422767562,1779372645000,-500.0,0.00023497,2]
[422767575,1779372645000,-500.0,0.00023497,2]
[422767576,1779372645000,-500.0,0.00023497,2]
[422767565,1779372645000,-500.0,0.00023497,2]
[422767567,1779372645000,-500.0,0.00023497,2]
[422767564,1779372645000,-500.0,0.00023497,2]
[422767570,1779372645000,-500.0,0.00023497,2]
[422767568,1779372645000,-500.0,0.00023497,2]
[422767566,1779372645000,-500.0,0.00023497,2]
[422767569,1779372645000,-500.0,0.00023497,2]
[422767573,1779372645000,-500.0,0.00023497,2]
[422767574,1779372645000,-500.0,0.00023497,2]
[422767572,1779372645000,-500.0,0.00023497,2]
[422767609,1779372645000,-3102.50462481,0.00023497,2]
[422767624,1779372645000,-1769.07842371,0.0002398,2]
[422767615,1779372645000,-529.0675309,0.00023555,2]
[422767652,1779372645000,-1024.0,0.00024338,2]
[422767642,1779372645000,-6834.44,0.00024174,2]
[422767649,1779372645000,-7104.21,0.00024174,2]
[422767646,1779372645000,-24999.99,0.00024174,2]
[422767648,1779372645000,-150.99,0.00024174,2]
[422767647,1779372645000,-299.99,0.00024174,7]
[422767645,1779372645000,-9999.99,0.00024174,2]
[422767650,1779372645000,-529.0675309,0.00024291,2]
[422767653,1779372645000,-200.0,0.00024434,2]
[422767658,1779372645000,-529.0675309,0.00024501,2]
[422767657,1779372645000,-529.0675309,0.00024482,2]
[422767654,1779372645000,-377.0,0.0002445,2]
[422767655,1779372645000,-377.0,0.0002445,2]
[422767644,1779372645000,-2054.74,0.00024174,2]
[422767656,1779372645000,-529.0675309,0.0002447,2]
[422767661,1779372645000,-443.0,0.000246,2]
[422767663,1779372645000,-377.0,0.00024657,2]
[422767664,1779372645000,-540.0,0.00024657,5]
[422767662,1779372645000,-377.0,0.0002462,2]
[422767660,1779372645000,-529.0675309,0.0002454,2]
[422767665,1779372645000,-925.56,0.00024658,2]
[422767667,1779372645000,-2721.18,0.00024658,2]
[422767666,1779372645000,-1000.0,0.00024658,2]
[422767670,1779372645000,-200.0,0.000247,2]
[422767669,1779372645000,-1618.67,0.00024658,2]
[422767671,1779372645000,-529.0675309,0.00024775,2]
[422767672,1779372645000,-200.0,0.000248,10]
[422767612,1779372645000,-2500.0,0.00023498,2]
[422767659,1779372645000,-529.0675309,0.00024522,2]
[422767643,1779372645000,-9999.99,0.00024174,2]
[422767668,1779372645000,-1920.8,0.00024658,2]
[422767641,1779372645000,-350.63,0.00024174,2]
[422767651,1779372645000,-2766.3,0.00024324,2]
[422767608,1779372645000,-3102.50462481,0.00023497,2]
[422767607,1779372645000,-3102.50462481,0.00023497,2]
[422767614,1779372645000,-1800.0,0.00023498,7]
[422767611,1779372645000,-3102.50462481,0.00023497,2]
[422767625,1779372645000,-487.0,0.0002398,2]
[422767616,1779372645000,-1005.15,0.00023586,2]
[422767627,1779372645000,-618.28,0.0002398,2]
[422767628,1779372645000,-2000.0,0.0002399,2]
[422767622,1779372645000,-529.0675309,0.00023836,2]
[422767619,1779372645000,-529.0675309,0.00023709,2]
[422767618,1779372645000,-200.0,0.00023637,2]
[422767620,1779372645000,-529.0675309,0.00023786,2]
[422767621,1779372645000,-2150.43051842,0.00023802,2]
[422767613,1779372645000,-1850.0,0.00023498,2]
[422767617,1779372645000,-2697.89406282,0.00023603,2]
[422767626,1779372645000,-487.0,0.0002398,2]
[422767630,1779372645000,-210.0,0.00024,2]
[422767638,1779372645000,-1101.197,0.00024082,2]
[422767633,1779372645000,-229.0,0.00024,2]
[422767635,1779372645000,-557.0,0.00024,2]
[422767636,1779372645000,-429.0,0.00024,2]
[422767640,1779372645000,-894.34,0.00024174,2]
[422767639,1779372645000,-3634.0,0.00024082,2]
[422767637,1779372645000,-529.0675309,0.00024061,2]
[422767632,1779372645000,-2000.0,0.00024,2]
[422767631,1779372645000,-2000.0,0.00024,2]
[422767629,1779372645000,-472.46218159,0.0002399,2]
[422767623,1779372645000,-169.89,0.00023965,2]
[422767634,1779372645000,-850.0,0.00024,2]
[422767714,1779372646000,-1250.0,0.00026967,2]
[422767722,1779372646000,-500.0,0.00027387,2]
[422767713,1779372646000,-1250.0,0.00026967,2]
[422767711,1779372646000,-1250.0,0.00026967,2]
[422767704,1779372646000,-200.0,0.00026823,2]
[422767709,1779372646000,-1250.0,0.00026967,2]
[422767705,1779372646000,-2697.89406282,0.00026952,2]
[422767706,1779372646000,-1250.0,0.00026967,2]
[422767720,1779372646000,-2000.0,0.00027297,2]
[422767707,1779372646000,-1250.0,0.00026967,2]
[422767712,1779372646000,-1250.0,0.00026967,2]
[422767708,1779372646000,-1250.0,0.00026967,2]
[422767724,1779372646000,-152.19,0.00027397,13]
[422767721,1779372646000,-500.0,0.00027387,2]
[422767716,1779372646000,-2314.0,0.00026997,3]
[422767718,1779372646000,-3634.0,0.00027082,2]
[422767715,1779372646000,-1149.0,0.00026967,2]
[422767717,1779372646000,-1024.0,0.00027043,2]
[422767735,1779372646000,-500.0,0.000274,2]
[422767734,1779372646000,-500.0,0.000274,2]
[422767736,1779372646000,-500.0,0.000274,2]
[422767723,1779372646000,-152.19,0.00027397,13]
[422767731,1779372646000,-300.0,0.00027397,2]
[422767725,1779372646000,-152.18,0.00027397,13]
[422767710,1779372646000,-1250.0,0.00026967,2]
[422767727,1779372646000,-416.15181418,0.00027397,7]
[422767719,1779372646000,-33198.9797,0.00027297,2]
[422767702,1779372646000,-208.85197956,0.00026397,2]
[422767692,1779372646000,-350.63,0.00025786,2]
[422767703,1779372646000,-2150.43051842,0.00026455,2]
[422767729,1779372646000,-1500.0,0.00027397,2]
[422767677,1779372646000,-858.54514472,0.00025,2]
[422767679,1779372646000,-448.45737762,0.00025,2]
[422767673,1779372646000,-163.0,0.00024809,3]
[422767674,1779372646000,-300.0,0.000249,10]
[422767676,1779372646000,-239.68726952,0.00025,2]
[422767675,1779372646000,-215.0,0.00025,2]
[422767680,1779372646000,-150.0,0.00025028,2]
[422767682,1779372646000,-1219.497,0.00025028,2]
[422767681,1779372646000,-927.0,0.00025028,2]
[422767684,1779372646000,-200.0,0.0002523,2]
[422767683,1779372646000,-1706.10956049,0.00025125,21]
[422767685,1779372646000,-2697.89406282,0.00025277,2]
[422767686,1779372646000,-423.19510956,0.00025397,2]
[422767689,1779372646000,-208.85197956,0.00025397,2]
[422767687,1779372646000,-624.22772127,0.00025397,2]
[422767688,1779372646000,-686.80280404,0.00025397,2]
[422767690,1779372646000,-854.0,0.00025767,2]
[422767691,1779372646000,-894.34,0.00025786,2]
[422767694,1779372646000,-206.65,0.00025827,2]
[422767693,1779372646000,-6834.44,0.00025786,2]
[422767696,1779372646000,-200.0,0.00026027,2]
[422767697,1779372646000,-2766.3,0.00026296,2]
[422767698,1779372646000,-423.19510956,0.00026397,2]
[422767695,1779372646000,-232.52863687,0.00025839,2]
[422767699,1779372646000,-624.22772127,0.00026397,2]
[422767701,1779372646000,-296.0009611,0.00026397,2]
[422767700,1779372646000,-686.80280404,0.00026397,2]
[422767733,1779372646000,-151.78567293,0.00027397,3]
[422767678,1779372646000,-558.27091604,0.00025,2]
[422767726,1779372646000,-282.13007304,0.00027397,7]
[422767766,1779372646000,-251.67,0.00028105,2]
[422767775,1779372646000,-521.23,0.00028111,30]
[422767764,1779372646000,-305.26,0.00028104,30]
[422767768,1779372646000,-251.67,0.00028107,7]
[422767769,1779372646000,-305.26,0.00028108,30]
[422767772,1779372646000,-305.26,0.0002811,2]
[422767773,1779372646000,-521.23,0.0002811,7]
[422767771,1779372646000,-251.67,0.00028109,30]
[422767774,1779372646000,-305.26,0.00028111,7]
[422767770,1779372646000,-521.23,0.00028109,2]
[422767776,1779372646000,-251.67,0.00028111,2]
[422767778,1779372646000,-251.67,0.00028112,7]
[422767767,1779372646000,-305.26,0.00028107,7]
[422767777,1779372646000,-521.23,0.00028112,2]
[422767786,1779372646000,-654.98,0.00028116,2]
[422767782,1779372646000,-521.23,0.00028114,30]
[422767784,1779372646000,-357.43971696,0.00028115,2]
[422767781,1779372646000,-305.26,0.00028114,2]
[422767779,1779372646000,-305.26,0.00028113,30]
[422767783,1779372646000,-251.67,0.00028114,30]
[422767785,1779372646000,-521.23,0.00028115,2]
[422767787,1779372646000,-654.98,0.00028116,7]
[422767789,1779372646000,-521.23,0.00028116,7]
[422767788,1779372646000,-305.26,0.00028116,7]
[422767791,1779372646000,-654.98,0.00028117,30]
[422767790,1779372646000,-251.67,0.00028116,2]
[422767780,1779372646000,-521.23,0.00028113,7]
[422767765,1779372646000,-305.26,0.00028105,2]
[422767792,1779372646000,-305.26,0.00028117,30]
[422767763,1779372646000,-251.67,0.00028103,30]
[422767762,1779372646000,-305.26,0.00028102,7]
[422767728,1779372646000,-457.86853603,0.00027397,7]
[422767732,1779372646000,-25212.56,0.00027397,10]
[422767737,1779372646000,-700.0,0.000274,2]
[422767738,1779372646000,-500.0,0.000274,2]
[422767739,1779372646000,-500.0,0.000274,2]
[422767742,1779372646000,-4957.0,0.000274,7]
[422767743,1779372646000,-1000.0,0.00027405,28]
[422767744,1779372646000,-1000.0,0.0002741,3]
[422767740,1779372646000,-500.0,0.000274,2]
[422767741,1779372646000,-858.35,0.000274,2]
[422767746,1779372646000,-215.23956962,0.000275,7]
[422767745,1779372646000,-4957.0,0.000275,7]
[422767747,1779372646000,-1306.32138804,0.0002755,2]
[422767730,1779372646000,-925.56,0.00027397,2]
[422767749,1779372646000,-1500.0,0.000278,7]
[422767748,1779372646000,-200.0,0.00027619,2]
[422767761,1779372646000,-251.67,0.00028101,7]
[422767756,1779372646000,-251.67,0.00028094,2]
[422767760,1779372646000,-305.26,0.00028101,2]
[422767758,1779372646000,-251.67,0.00028097,30]
[422767757,1779372646000,-251.67,0.00028095,7]
[422767751,1779372646000,-900.0,0.000279,10]
[422767759,1779372646000,-251.67,0.00028099,2]
[422767754,1779372646000,-689.0,0.00028007,5]
[422767752,1779372646000,-150.0,0.00027974,4]
[422767750,1779372646000,-150.0,0.00027888,4]
[422767753,1779372646000,-215.23956962,0.00028,10]
[422767755,1779372646000,-150.0,0.0002806,7]
[422767828,1779372647000,-654.98,0.00028128,30]
[422767831,1779372647000,-251.67,0.00028128,2]
[422767829,1779372647000,-305.26,0.00028128,2]
[422767824,1779372647000,-251.67,0.00028126,30]
[422767825,1779372647000,-654.98,0.00028127,2]
[422767834,1779372647000,-832.29,0.0002813,7]
[422767826,1779372647000,-654.98,0.00028127,7]
[422767823,1779372647000,-521.23,0.00028126,7]
[422767833,1779372647000,-829.74934647,0.0002813,2]
[422767830,1779372647000,-521.23,0.00028128,2]
[422767827,1779372647000,-521.23,0.00028127,30]
[422767841,1779372647000,-1202.17,0.00028149,7]
[422767838,1779372647000,-251.7,0.0002813,7]
[422767847,1779372647000,-1202.17,0.00028149,2]
[422767845,1779372647000,-1202.17,0.00028149,7]
[422767836,1779372647000,-305.41,0.0002813,7]
[422767846,1779372647000,-1202.17,0.00028149,30]
[422767832,1779372647000,-654.98,0.00028129,2]
[422767837,1779372647000,-521.39,0.0002813,7]
[422767835,1779372647000,-655.11,0.0002813,7]
[422767843,1779372647000,-1202.17,0.00028149,30]
[422767840,1779372647000,-1202.17,0.00028149,2]
[422767844,1779372647000,-1202.17,0.00028149,2]
[422767848,1779372647000,-1202.17,0.00028149,7]
[422767850,1779372647000,-1202.17,0.00028149,30]
[422767852,1779372647000,-1202.17,0.00028149,2]
[422767839,1779372647000,-150.0,0.00028146,7]
[422767815,1779372647000,-654.98,0.00028124,2]
[422767821,1779372647000,-654.98,0.00028126,30]
[422767813,1779372647000,-521.23,0.00028123,7]
[422767854,1779372647000,-1202.17,0.00028149,7]
[422767797,1779372647000,-251.67,0.00028118,7]
[422767798,1779372647000,-654.98,0.00028119,30]
[422767793,1779372647000,-521.23,0.00028117,30]
[422767795,1779372647000,-654.98,0.00028118,7]
[422767794,1779372647000,-654.98,0.00028118,2]
[422767796,1779372647000,-521.23,0.00028118,2]
[422767799,1779372647000,-305.26,0.00028119,2]
[422767802,1779372647000,-521.23,0.0002812,7]
[422767808,1779372647000,-305.26,0.00028122,30]
[422767801,1779372647000,-305.26,0.0002812,7]
[422767800,1779372647000,-654.98,0.0002812,2]
[422767816,1779372647000,-521.23,0.00028124,30]
[422767809,1779372647000,-521.23,0.00028122,2]
[422767804,1779372647000,-654.98,0.00028121,7]
[422767810,1779372647000,-251.67,0.00028122,2]
[422767805,1779372647000,-654.98,0.00028121,30]
[422767807,1779372647000,-654.98,0.00028122,2]
[422767819,1779372647000,-305.26,0.00028125,7]
[422767820,1779372647000,-521.23,0.00028125,2]
[422767812,1779372647000,-305.26,0.00028123,2]
[422767818,1779372647000,-654.98,0.00028125,7]
[422767814,1779372647000,-654.98,0.00028124,30]
[422767822,1779372647000,-305.26,0.00028126,30]
[422767817,1779372647000,-251.67,0.00028124,7]
[422767811,1779372647000,-654.98,0.00028123,7]
[422767806,1779372647000,-521.23,0.00028121,30]
[422767803,1779372647000,-251.67,0.0002812,30]
[422767856,1779372647000,-1202.17,0.00028149,30]
[422767861,1779372647000,-1202.17,0.00028149,7]
[422767907,1779372647000,-1079.11,0.000282,7]
[422767910,1779372647000,-1079.11,0.000282,7]
[422767909,1779372647000,-1079.11,0.000282,2]
[422767914,1779372647000,-1079.11,0.000282,30]
[422767912,1779372647000,-1079.11,0.000282,2]
[422767915,1779372647000,-1079.11,0.000282,2]
[422767913,1779372647000,-1079.11,0.000282,7]
[422767917,1779372647000,-1079.11,0.000282,30]
[422767911,1779372647000,-1079.11,0.000282,30]
[422767916,1779372647000,-1079.11,0.000282,7]
[422767920,1779372647000,-1079.11,0.000282,30]
[422767932,1779372647000,-1280.53,0.00028208,2]
[422767919,1779372647000,-1079.11,0.000282,7]
[422767923,1779372647000,-1079.11,0.000282,30]
[422767929,1779372647000,-1280.53,0.00028208,2]
[422767921,1779372647000,-1079.11,0.000282,2]
[422767924,1779372647000,-1079.11,0.000282,2]
[422767922,1779372647000,-1079.11,0.000282,7]
[422767925,1779372647000,-1079.29,0.000282,7]
[422767930,1779372647000,-1280.53,0.00028208,7]
[422767931,1779372647000,-1280.53,0.00028208,30]
[422767927,1779372647000,-1280.53,0.00028208,7]
[422767934,1779372647000,-1280.53,0.00028208,30]
[422767933,1779372647000,-1280.53,0.00028208,7]
[422767935,1779372647000,-1280.53,0.00028208,2]
[422767859,1779372647000,-1202.17,0.00028149,2]
[422767928,1779372647000,-1280.53,0.00028208,30]
[422767918,1779372647000,-1079.11,0.000282,2]
[422767926,1779372647000,-1280.53,0.00028208,2]
[422767901,1779372647000,-1355.45,0.00028157,7]
[422767863,1779372647000,-1202.17,0.00028149,30]
[422767908,1779372647000,-1079.11,0.000282,30]
[422767867,1779372647000,-1202.17,0.00028149,7]
[422767872,1779372647000,-1202.17,0.00028149,2]
[422767869,1779372647000,-1202.17,0.00028149,30]
[422767865,1779372647000,-1202.17,0.00028149,2]
[422767874,1779372647000,-1202.25,0.00028149,7]
[422767884,1779372647000,-1355.45,0.00028157,2]
[422767887,1779372647000,-1355.45,0.00028157,7]
[422767882,1779372647000,-1355.45,0.00028157,30]
[422767877,1779372647000,-1355.45,0.00028157,2]
[422767891,1779372647000,-1355.45,0.00028157,2]
[422767892,1779372647000,-1355.45,0.00028157,7]
[422767880,1779372647000,-1355.45,0.00028157,7]
[422767889,1779372647000,-1355.45,0.00028157,30]
[422767899,1779372647000,-1355.45,0.00028157,30]
[422767900,1779372647000,-1355.45,0.00028157,2]
[422767893,1779372647000,-1355.45,0.00028157,30]
[422767903,1779372647000,-1355.45,0.00028157,2]
[422767904,1779372647000,-1355.49,0.00028157,7]
[422767902,1779372647000,-1355.45,0.00028157,30]
[422767905,1779372647000,-150.0,0.00028192,2]
[422767906,1779372647000,-1079.11,0.000282,2]
[422767897,1779372647000,-1355.45,0.00028157,2]
[422767895,1779372647000,-1355.45,0.00028157,7]
[422767894,1779372647000,-1355.45,0.00028157,2]
[422767896,1779372647000,-1355.45,0.00028157,30]
[422767898,1779372647000,-1355.45,0.00028157,7]
[422767976,1779372648000,-164.3006574,0.00028458,7]
[422767980,1779372648000,-186.58793342,0.00028458,7]
[422767979,1779372648000,-184.12634597,0.00028458,7]
[422767974,1779372648000,-175.25392049,0.0002845,7]
[422767973,1779372648000,-392.52063813,0.0002845,7]
[422767966,1779372648000,-153.58142807,0.0002845,7]
[422767968,1779372648000,-153.30034028,0.0002845,7]
[422767970,1779372648000,-151.4976273,0.0002845,5]
[422767972,1779372648000,-219.80813039,0.0002845,7]
[422767971,1779372648000,-391.36097535,0.0002845,7]
[422767978,1779372648000,-154.34490115,0.00028458,7]
[422767969,1779372648000,-163.72573998,0.0002845,7]
[422767975,1779372648000,-150.06380319,0.00028451,7]
[422767990,1779372648000,-161.48131688,0.00028458,7]
[422767982,1779372648000,-165.14822888,0.00028458,7]
[422767981,1779372648000,-185.76810245,0.00028458,7]
[422767988,1779372648000,-170.0414535,0.00028458,7]
[422767984,1779372648000,-199.5427333,0.00028458,7]
[422767992,1779372648000,-151.04568664,0.00028458,7]
[422767987,1779372648000,-169.56721651,0.00028458,7]
[422767985,1779372648000,-164.03918274,0.00028458,7]
[422767993,1779372648000,-186.7021767,0.00028458,7]
[422767986,1779372648000,-173.62464534,0.00028458,7]
[422767983,1779372648000,-157.30157199,0.00028458,7]
[422767991,1779372648000,-165.69936685,0.00028458,7]
[422767989,1779372648000,-157.63054872,0.00028458,7]
[422767965,1779372648000,-177.51675689,0.0002845,7]
[422767977,1779372648000,-163.05560685,0.00028458,7]
[422767960,1779372648000,-278.46930608,0.00028397,7]
[422767942,1779372648000,-1280.53,0.00028208,7]
[422767962,1779372648000,-200.0,0.00028416,2]
[422767994,1779372648000,-159.22134548,0.00028458,7]
[422767943,1779372648000,-1280.53,0.00028208,30]
[422767940,1779372648000,-1280.53,0.00028208,30]
[422767941,1779372648000,-1280.53,0.00028208,2]
[422767944,1779372648000,-1280.53,0.00028208,2]
[422767945,1779372648000,-1280.63,0.00028208,7]
[422767936,1779372648000,-1280.53,0.00028208,7]
[422767938,1779372648000,-1280.53,0.00028208,2]
[422767937,1779372648000,-1280.53,0.00028208,30]
[422767939,1779372648000,-1280.53,0.00028208,7]
[422767946,1779372648000,-200.0,0.00028215,2]
[422767947,1779372648000,-650.0,0.00028215,30]
[422767948,1779372648000,-650.0,0.00028215,30]
[422767954,1779372648000,-150.0,0.00028318,7]
[422767951,1779372648000,-499.0,0.00028215,30]
[422767949,1779372648000,-650.0,0.00028215,30]
[422767950,1779372648000,-650.0,0.00028215,30]
[422767955,1779372648000,-5000.0,0.00028358,2]
[422767953,1779372648000,-2766.3,0.00028267,2]
[422767952,1779372648000,-150.0,0.00028232,7]
[422767957,1779372648000,-416.15181418,0.00028397,7]
[422767956,1779372648000,-282.13007304,0.00028397,7]
[422767967,1779372648000,-315.27074504,0.0002845,7]